fUST/lending_fUST_20241107
["ID","MTS","AMOUNT","RATE_DAILY","PERIOD"]
[341465388,1730911842671,-500.0,0.00027397,2]
[341465389,1730911842682,-507.84266072,0.00027397,2]
[341465390,1730911842693,-500.0,0.00027397,2]
[341465391,1730911842703,-502.48180392,0.00027397,2]
[341465392,1730911842713,-505.5255554,0.00027397,2]
[341465393,1730911842722,-500.0,0.00027397,2]
[341465394,1730911842731,-500.0,0.00027397,2]
[341465395,1730911842741,-501.50307458,0.00027397,2]
[341465396,1730911842750,-500.0,0.00027397,2]
[341465397,1730911842759,-500.0,0.00027397,2]
[341465398,1730911842768,-519.34297907,0.00027397,2]
[341465399,1730911842778,-500.0,0.00027397,2]
[341465400,1730911842787,-504.37206655,0.00027397,2]
[341465401,1730911842796,-500.0,0.00027397,2]
[341465402,1730911842805,-500.0,0.00027397,2]
[341465403,1730911842815,-502.93369701,0.00027397,2]
[341465404,1730911842825,-497.22879591,0.00027397,2]
[341465405,1730911842833,-500.0,0.00027397,2]
[341465406,1730911842843,-500.0,0.00027397,2]
[341465407,1730911842853,-502.85735185,0.00027397,2]
[341465408,1730911842862,-514.98276654,0.00027397,7]
[341465409,1730911842872,-500.74696836,0.00027397,2]
[341465411,1730911842881,-500.0,0.00027397,2]
[341465412,1730911842892,-500.0,0.00027397,2]
[341465413,1730911842902,-500.0,0.00027397,2]
[341465414,1730911842912,-500.0,0.00027397,2]
[341465415,1730911842922,-522.80610124,0.00027397,2]
[341465416,1730911842932,-508.70483134,0.00027397,2]
[341465417,1730911842949,-500.0,0.00027397,2]
[341465418,1730911842958,-502.59347897,0.00027397,2]
[341465419,1730911842967,-500.0,0.00027397,2]
[341465420,1730911842979,-500.0,0.00027397,2]
[341465421,1730911842990,-500.0,0.00027397,2]
[341465423,1730911842999,-500.0,0.00027397,2]
[341465425,1730911843008,-500.0,0.00027397,2]
[341465426,1730911843018,-510.86326887,0.00027397,2]
[341465427,1730911843028,-500.0,0.00027397,2]
[341465428,1730911843037,-500.0,0.00027397,2]
[341465430,1730911843046,-211.62340562,0.00027397,2]
[341465431,1730911843057,-1001.98234887,0.00027397,2]
[341465432,1730911843067,-500.0,0.00027397,2]
[341465433,1730911843076,-500.0,0.00027397,2]
[341465434,1730911843086,-500.0,0.00027397,2]
[341465435,1730911843095,-500.0,0.00027397,2]
[341465436,1730911843104,-500.0,0.00027397,2]
[341465437,1730911843114,-500.0,0.00027397,2]
[341465438,1730911843123,-500.0,0.00027397,2]
[341465439,1730911843133,-500.0,0.00027397,2]
[341465440,1730911843145,-508.41077583,0.00027397,2]
[341465441,1730911843154,-500.0,0.00027397,2]
[341465442,1730911843163,-500.0,0.00027397,2]
[341465443,1730911843173,-500.0,0.00027397,2]
[341465444,1730911843182,-500.0,0.00027397,2]
[341465445,1730911843191,-500.0,0.00027397,2]
[341465446,1730911843201,-500.0,0.00027397,2]
[341465447,1730911843211,-500.0,0.00027397,2]
[341465449,1730911843220,-500.0,0.00027397,2]
[341465451,1730911843230,-500.0,0.00027397,2]
[341465452,1730911843239,-500.0,0.00027397,2]
[341465454,1730911843249,-503.87606996,0.00027397,2]
[341465455,1730911843258,-500.0,0.00027397,2]
[341465456,1730911843267,-500.0,0.00027397,2]
[341465458,1730911843277,-500.0,0.00027397,2]
[341465460,1730911843286,-500.0,0.00027397,2]
[341465461,1730911843295,-500.0,0.00027397,2]
[341465462,1730911843305,-500.0,0.00027397,2]
[341465463,1730911843314,-500.0,0.00027397,2]
[341465464,1730911843323,-527.99175324,0.00027397,2]
[341465466,1730911843332,-500.0,0.00027397,2]
[341465467,1730911843342,-52.67955715,0.00027397,2]
[341465470,1730911843767,-261.51609688,0.00027373,2]
[341465472,1730911843777,-139.63446817,0.00027397,2]
[341465474,1730911843789,-307.68597468,0.00027397,2]
[341465475,1730911843798,-433.98750291,0.00027397,2]
[341465546,1730911847130,-647.33550684,0.00025103,2]
[341465548,1730911847141,-500.0,0.00025103,2]
[341465550,1730911847152,-500.0,0.00025103,2]
[341465551,1730911847161,-500.0,0.00025103,2]
[341465553,1730911847170,-500.0,0.00025103,2]
[341465555,1730911847180,-500.0,0.00025103,2]
[341465558,1730911847190,-513.18222754,0.00025103,2]
[341465559,1730911847200,-500.0,0.00025103,2]
[341465561,1730911847209,-500.0,0.00025103,2]
[341465563,1730911847219,-500.0,0.00025103,2]
[341465566,1730911847229,-593.86216101,0.00025103,2]
[341465568,1730911847239,-424.37385127,0.00025103,2]
[341465570,1730911847248,-536.08176595,0.00025103,2]
[341465572,1730911847258,-500.0,0.00025103,2]
[341465573,1730911847267,-500.0,0.00025103,2]
[341465575,1730911847276,-500.0,0.00025103,2]
[341465577,1730911847285,-500.0,0.00025103,2]
[341465579,1730911847294,-500.0,0.00025103,2]
[341465582,1730911847305,-500.0,0.00025103,2]
[341465584,1730911847314,-500.0,0.00025103,2]
[341465586,1730911847326,-500.0,0.00025103,2]
[341465588,1730911847337,-500.0,0.00025103,2]
[341465590,1730911847348,-679.58,0.00027387,3]
[341465592,1730911847358,-375.79850241,0.00027396,2]
[341465594,1730911847368,-66.01249709,0.00027397,2]
[341465596,1730911847377,-500.0,0.00027397,2]
[341465598,1730911847387,-507.74045192,0.00027397,2]
[341465601,1730911847398,-500.0,0.00027397,2]
[341465603,1730911847407,-500.0,0.00027397,2]
[341465605,1730911847416,-500.0,0.00027397,2]
[341465606,1730911847425,-503.30523225,0.00027397,2]
[341465608,1730911847434,-500.0,0.00027397,2]
[341465610,1730911847443,-500.0,0.00027397,2]
[341465612,1730911847452,-500.0,0.00027397,2]
[341465614,1730911847462,-512.19934898,0.00027397,2]
[341465616,1730911847472,-559.51227185,0.00027397,2]
[341465618,1730911847481,-500.0,0.00027397,2]
[341465620,1730911847491,-501.90343083,0.00027397,2]
[341465622,1730911847500,-500.0,0.00027397,2]
[341465624,1730911847509,-503.36798588,0.00027397,2]
[341465626,1730911847519,-522.26095283,0.00027397,2]
[341465628,1730911847530,-520.01044981,0.00027397,2]
[341465631,1730911847540,-500.0,0.00027397,2]
[341465633,1730911847549,-500.0,0.00027397,2]
[341465635,1730911847559,-505.42834401,0.00027397,2]
[341465636,1730911847567,-500.0,0.00027397,2]
[341465638,1730911847577,-500.0,0.00027397,2]
[341465641,1730911847587,-500.0,0.00027397,2]
[341465642,1730911847596,-528.06190249,0.00027397,2]
[341465645,1730911847607,-500.0,0.00027397,2]
[341465647,1730911847616,-500.0,0.00027397,2]
[341465648,1730911847626,-519.06445102,0.00027397,2]
[341465650,1730911847635,-500.0,0.00027397,2]
[341465653,1730911847647,-500.0,0.00027397,2]
[341465655,1730911847657,-500.0,0.00027397,2]
[341465656,1730911847667,-508.82820898,0.00027397,2]
[341465658,1730911847676,-171.50426138,0.00027397,2]
[341465660,1730911847685,-500.0,0.00027397,2]
[341465662,1730911847695,-344.15260463,0.00027397,2]
[341465664,1730911847705,-500.0,0.00027397,2]
[341465666,1730911847713,-1092.45,0.00027397,2]
[341465668,1730911847723,-500.0,0.00027397,2]
[341465670,1730911847733,-500.0,0.00027397,2]
[341465672,1730911847742,-265.01487281,0.00027397,2]
[341465674,1730911847751,-500.0,0.00027397,2]
[341465676,1730911847761,-500.0,0.00027397,2]
[341465678,1730911847771,-506.34619409,0.00027397,2]
[341465681,1730911847781,-500.0,0.00027397,2]
[341465683,1730911847791,-500.0,0.00027397,2]
[341465685,1730911847800,-500.0,0.00027397,2]
[341465686,1730911847809,-500.0,0.00027397,2]
[341465688,1730911847819,-500.0,0.00027397,2]
[341465690,1730911847828,-500.0,0.00027397,2]
[341465693,1730911847838,-447.27424828,0.00027397,2]
[341468116,1730911903608,713.04,0.000208,60]
[341468117,1730911907324,193.21425,0.00018029,2]
[341468118,1730912021806,208.474319,0.00013973,2]
[341468163,1730912219586,1169.27083333,0.0002083,2]
[341468182,1730912598060,166.20812,0.00013973,2]
[341468195,1730912832713,1169.27083333,0.0002083,2]
[341468206,1730912977336,1000.0,0.0002,2]
[341468209,1730913008333,-171.070896,0.00022228,2]
[341468210,1730913008380,-881.556401,0.00022712,2]
[341468211,1730913008410,-171.070896,0.00022986,2]
[341468212,1730913008470,-3421.61285,0.00023188,2]
[341468213,1730913008507,-300.0,0.00023734,2]
[341468214,1730913008536,-300.0,0.00023734,2]
[341468215,1730913008573,-24900.0,0.00023735,2]
[341468216,1730913008594,-171.070896,0.00023743,2]
[341468217,1730913008617,-177.09579567,0.00023871,2]
[341468218,1730913008638,-3421.61285,0.00023872,2]
[341468219,1730913008659,-1084.90941533,0.00023949,2]
[341468250,1730913036715,-855.84904157,0.00023949,2]
[341468251,1730913036724,-811.67443697,0.00024255,2]
[341468292,1730913040620,-24088.32556303,0.00024255,2]
[341468293,1730913040630,-248.015154,0.00024458,2]
[341468294,1730913040640,-248.015154,0.00024465,2]
[341468295,1730913040649,-248.015154,0.00024471,2]
[341468296,1730913040658,-248.015154,0.00024478,2]
[341468297,1730913040668,-248.015154,0.00024484,2]
[341468298,1730913040678,-248.015154,0.00024491,2]
[341468299,1730913040687,-248.015154,0.00024497,2]
[341468300,1730913040696,-171.070896,0.00024501,2]
[341468301,1730913040706,-248.015154,0.00024503,2]
[341468302,1730913040715,-248.015154,0.0002451,2]
[341468303,1730913040725,-248.015154,0.00024516,2]
[341468304,1730913040734,-248.015154,0.00024523,2]
[341468305,1730913040743,-248.015154,0.00024529,2]
[341468306,1730913040753,-248.015154,0.00024536,2]
[341468307,1730913040762,-248.015154,0.00024542,2]
[341468308,1730913040771,-248.015154,0.00024548,2]
[341468309,1730913040780,-248.015154,0.00024555,2]
[341468310,1730913040789,-3421.61285,0.00024557,2]
[341468311,1730913040798,-248.015154,0.00024561,2]
[341468312,1730913040807,-248.015154,0.00024568,2]
[341468313,1730913040816,-248.015154,0.00024574,2]
[341468314,1730913040830,-248.015154,0.00024581,2]
[341468315,1730913040848,-286.7119632,0.00024658,4]
[341468316,1730913040858,-180.392706,0.00024978,2]
[341468317,1730913040868,-2000.0,0.00025,2]
[341468318,1730913040879,-171.070896,0.00025258,2]
[341468319,1730913040889,-182.69,0.000253,2]
[341468320,1730913040898,-420.0,0.00025745,2]
[341468321,1730913040908,-821.60033721,0.00025998,2]
[341468322,1730913040917,-420.0,0.00026107,2]
[341468323,1730913040926,-1000.0,0.00027,2]
[341468324,1730913040936,-500.0,0.00027297,2]
[341468325,1730913040946,-1000.0,0.00027297,2]
[341468326,1730913040956,-825.47780884,0.00027297,2]
[341468327,1730913040964,-482.83001686,0.00027298,2]
[341468328,1730913040974,-1550.49691072,0.00027371,2]
[341468329,1730913040983,-500.0,0.00027372,2]
[341468330,1730913040992,-500.0,0.00027372,2]
[341468331,1730913041003,-226.23130733,0.00027372,2]
[341468332,1730913041012,-500.0,0.00027373,2]
[341468333,1730913041021,-500.0,0.00027373,2]
[341468334,1730913041030,-500.0,0.00027373,2]
[341468335,1730913041040,-465.4688816,0.00027373,2]
[341468336,1730913041048,-500.0,0.00027373,2]
[341468337,1730913041058,-500.0,0.00027373,2]
[341468338,1730913041068,-500.0,0.00027373,2]
[341468339,1730913041077,-500.0,0.00027373,2]
[341468340,1730913041088,-453.44102107,0.00027373,2]
[341468341,1730913041099,-500.0,0.00027373,2]
[341468342,1730913041110,-500.0,0.00027373,2]
[341468343,1730913041119,-500.0,0.00027373,2]
[341468344,1730913041129,-173.79557726,0.00027373,2]
[341468345,1730913041140,-501.43262596,0.00027373,2]
[341468346,1730913041150,-500.69773175,0.00027373,2]
[341468347,1730913041160,-500.0,0.00027373,2]
[341468348,1730913041170,-500.0,0.00027373,2]
[341468349,1730913041179,-500.0,0.00027373,2]
[341468350,1730913041188,-500.0,0.00027373,2]
[341468351,1730913041197,-500.0,0.00027373,2]
[341468352,1730913041206,-500.0,0.00027373,2]
[341468353,1730913041216,-2353.59,0.00027387,10]
[341468354,1730913041224,-283.15,0.00027387,3]
[341468355,1730913041234,-600.0,0.00027396,2]
[341468356,1730913041244,-194.16906683,0.00027397,2]
[341468357,1730913041254,-500.0,0.00027397,2]
[341468358,1730913041263,-500.0,0.00027397,2]
[341468359,1730913041273,-500.0,0.00027397,2]
[341468360,1730913041282,-500.0,0.00027397,2]
[341468361,1730913041292,-500.0,0.00027397,2]
[341468362,1730913041301,-611.46,0.00027397,2]
[341468363,1730913041310,-500.0,0.00027397,2]
[341468364,1730913041320,-500.0,0.00027397,2]
[341468365,1730913041329,-500.0,0.00027397,2]
[341468366,1730913041339,-500.0,0.00027397,2]
[341468367,1730913041349,-500.0,0.00027397,2]
[341468368,1730913041359,-500.0,0.00027397,2]
[341468369,1730913041370,-637.47,0.00027397,2]
[341468370,1730913041380,-500.0,0.00027397,2]
[341468371,1730913041390,-500.0,0.00027397,2]
[341468372,1730913041484,-500.0,0.00027397,2]
[341468373,1730913041493,-500.0,0.00027397,2]
[341468374,1730913041502,-500.0,0.00027397,2]
[341468375,1730913041512,-169.38851035,0.00027397,2]
[341468376,1730913041521,-500.0,0.00027397,2]
[341468377,1730913041530,-500.0,0.00027397,2]
[341468378,1730913041539,-500.0,0.00027397,2]
[341468379,1730913041548,-500.0,0.00027397,2]
[341468380,1730913041557,-500.0,0.00027397,2]
[341468381,1730913041567,-274.24845229,0.00027397,2]
[341468382,1730913041576,-500.0,0.00027397,2]
[341468383,1730913041585,-500.0,0.00027397,2]
[341468384,1730913041595,-403.22672204,0.00027397,2]
[341468385,1730913041604,-535.74609661,0.00027397,2]
[341468386,1730913041614,-173.11758282,0.00027397,2]
[341468387,1730913041624,-504.51233049,0.00027397,2]
[341468388,1730913041634,-500.0,0.00027397,2]
[341468389,1730913041643,-500.0,0.00027397,2]
[341468390,1730913041652,-500.0,0.00027397,2]
[341468391,1730913041661,-500.0,0.00027397,2]
[341468392,1730913041670,-414.84633381,0.00027397,2]
[341468408,1730913044240,-1000.0,0.00021,2]
[341468409,1730913044252,-1000.0,0.00027297,2]
[341468410,1730913044262,-1961.33,0.00027387,10]
[341468411,1730913044272,-85.15366619,0.00027397,2]
[341468412,1730913044281,-529.83393222,0.00027397,2]
[341468413,1730913044290,-500.0,0.00027397,2]
[341468414,1730913044300,-500.0,0.00027397,2]
[341468415,1730913044309,-180.30921078,0.00027397,2]
[341468416,1730913044318,-500.0,0.00027397,2]
[341468417,1730913044328,-500.0,0.00027397,2]
[341468418,1730913044337,-500.0,0.00027397,2]
[341468419,1730913044347,-500.0,0.00027397,2]
[341468420,1730913044356,-500.0,0.00027397,2]
[341468421,1730913044370,-500.0,0.00027397,2]
[341468422,1730913044379,-500.0,0.00027397,2]
[341468423,1730913044389,-506.38186849,0.00027397,2]
[341468424,1730913044398,-500.0,0.00027397,2]
[341468425,1730913044409,-500.0,0.00027397,2]
[341468427,1730913044419,-500.0,0.00027397,2]
[341468428,1730913044429,-500.0,0.00027397,2]
[341468429,1730913044441,-500.0,0.00027397,2]
[341468430,1730913044451,-500.0,0.00027397,2]
[341468431,1730913044461,-500.0,0.00027397,2]
[341468432,1730913044471,-500.0,0.00027397,2]
[341468433,1730913044480,-500.0,0.00027397,2]
[341468434,1730913044491,-500.0,0.00027397,2]
[341468435,1730913044502,-500.0,0.00027397,2]
[341468436,1730913044512,-500.0,0.00027397,2]
[341468437,1730913044522,-500.0,0.00027397,2]
[341468438,1730913044534,-500.0,0.00027397,2]
[341468439,1730913044543,-500.0,0.00027397,2]
[341468440,1730913044554,-504.55218784,0.00027397,2]
[341468441,1730913044563,-500.0,0.00027397,2]
[341468442,1730913044573,-500.0,0.00027397,2]
[341468443,1730913044582,-500.0,0.00027397,2]
[341468444,1730913044594,-500.0,0.00027397,2]
[341468445,1730913044604,-500.0,0.00027397,2]
[341468446,1730913044614,-599.27569891,0.00027397,2]
[341468447,1730913044624,-540.75255349,0.00027397,2]
[341468448,1730913044633,-500.0,0.00027397,2]
[341468449,1730913044643,-500.0,0.00027397,2]
[341468450,1730913044652,-500.0,0.00027397,2]
[341468451,1730913044661,-179.13241606,0.00027397,2]
[341468452,1730913044670,-500.0,0.00027397,2]
[341468453,1730913044679,-502.81674764,0.00027397,2]
[341468454,1730913044689,-500.0,0.00027397,2]
[341468455,1730913044699,-500.0,0.00027397,2]
[341468456,1730913044709,-500.0,0.00027397,2]
[341468457,1730913044723,-500.0,0.00027397,2]
[341468458,1730913044732,-503.62438651,0.00027397,2]
[341468459,1730913044743,-500.0,0.00027397,2]
[341468460,1730913044753,-500.0,0.00027397,2]
[341468461,1730913044763,-501.72671402,0.00027397,2]
[341468462,1730913044773,-501.45061328,0.00027397,2]
[341468463,1730913044782,-503.23033688,0.00027397,2]
[341468464,1730913044792,-500.0,0.00027397,2]
[341468465,1730913044802,-500.0,0.00027397,2]
[341468466,1730913044811,-500.0,0.00027397,2]
[341468467,1730913044820,-500.0,0.00027397,2]
[341468468,1730913044830,-500.0,0.00027397,2]
[341468469,1730913044840,-500.0,0.00027397,2]
[341468470,1730913044850,-500.0,0.00027397,2]
[341468471,1730913044862,-517.91903389,0.00027397,2]
[341468472,1730913044871,-622.67866678,0.00027397,2]
[341468473,1730913044882,-500.0,0.00027397,2]
[341468474,1730913044901,-500.0,0.00027397,2]
[341468475,1730913044912,-501.5084308,0.00027397,2]
[341468476,1730913044921,-500.0,0.00027397,2]
[341468477,1730913044930,-500.0,0.00027397,2]
[341468478,1730913044940,-519.26121529,0.00027397,2]
[341468479,1730913044951,-500.0,0.00027397,2]
[341468480,1730913044961,-506.13195398,0.00027397,2]
[341468481,1730913044971,-500.0,0.00027397,2]
[341468482,1730913044981,-504.26837411,0.00027397,2]
[341468483,1730913044993,-500.0,0.00027397,2]
[341468484,1730913045003,-500.0,0.00027397,2]
[341468485,1730913045013,-500.0,0.00027397,2]
[341468486,1730913045023,-500.0,0.00027397,2]
[341468487,1730913045039,-500.0,0.00027397,2]
[341468488,1730913045051,-500.0,0.00027397,2]
[341468489,1730913045060,-500.0,0.00027397,2]
[341468490,1730913045070,-500.0,0.00027397,2]
[341468491,1730913045080,-552.45243695,0.00027397,2]
[341468492,1730913045090,-500.0,0.00027397,2]
[341468493,1730913045100,-500.0,0.00027397,2]
[341468494,1730913045109,-500.0,0.00027397,2]
[341468495,1730913045119,-500.0,0.00027397,2]
[341468496,1730913045128,-500.0,0.00027397,2]
[341468497,1730913045139,-501.6427327,0.00027397,2]
[341468498,1730913045148,-500.0,0.00027397,2]
[341468499,1730913045157,-507.89139519,0.00027397,2]
[341468500,1730913045167,-512.47080336,0.00027397,2]
[341468501,1730913045180,-500.0,0.00027397,2]
[341468502,1730913045190,-500.0,0.00027397,2]
[341468503,1730913045199,-490.0,0.00027397,2]
[341468504,1730913045209,-500.0,0.00027397,2]
[341468505,1730913045217,-500.0,0.00027397,2]
[341468506,1730913045227,-506.41637395,0.00027397,2]
[341468507,1730913045236,-500.0,0.00027397,2]
[341468508,1730913045247,-500.0,0.00027397,2]
[341468509,1730913045257,-506.46186259,0.00027397,2]
[341468510,1730913045270,-500.0,0.00027397,2]
[341468511,1730913045279,-500.0,0.00027397,2]
[341468512,1730913045289,-500.0,0.00027397,2]
[341468513,1730913045299,-514.0904001,0.00027397,2]
[341468514,1730913045308,-500.0,0.00027397,2]
[341468515,1730913045319,-500.0,0.00027397,2]
[341468516,1730913045331,-500.0,0.00027397,2]
[341468517,1730913045341,-500.0,0.00027397,2]
[341468518,1730913045351,-500.0,0.00027397,2]
[341468519,1730913045364,-500.0,0.00027397,2]
[341468520,1730913045374,-500.0,0.00027397,2]
[341468521,1730913045385,-500.0,0.00027397,2]
[341468522,1730913045395,-500.0,0.00027397,2]
[341468523,1730913045407,-520.24,0.00027397,2]
[341468524,1730913045417,-504.74556712,0.00027397,2]
[341468525,1730913045426,-200.0,0.00027397,2]
[341468526,1730913045439,-500.0,0.00027397,2]
[341468527,1730913045452,-507.28269997,0.00027397,2]
[341468528,1730913045462,-500.0,0.00027397,2]
[341468529,1730913045473,-500.0,0.00027397,2]
[341468530,1730913045483,-500.0,0.00027397,2]
[341468531,1730913045493,-500.0,0.00027397,2]
[341468532,1730913045503,-503.43504948,0.00027397,2]
[341468533,1730913045513,-500.0,0.00027397,2]
[341468534,1730913045524,-512.05323822,0.00027397,2]
[341468535,1730913045534,-500.0,0.00027397,2]
[341468536,1730913045546,-500.0,0.00027397,2]
[341468537,1730913045556,-500.0,0.00027397,2]
[341468538,1730913045565,-500.0,0.00027397,2]
[341468539,1730913045575,-500.0,0.00027397,2]
[341468540,1730913045686,-500.0,0.00027397,2]
[341468541,1730913045698,-502.17867385,0.00027397,2]
[341468542,1730913045708,-491.13386687,0.00027397,2]
[341468543,1730913045720,-500.0,0.00027397,2]
[341468544,1730913045730,-500.0,0.00027397,2]
[341468545,1730913045740,-502.21225408,0.00027397,2]
[341468546,1730913045751,-500.0,0.00027397,2]
[341468547,1730913045761,-500.0,0.00027397,2]
[341468548,1730913045772,-291.19995928,0.00027397,2]
[341468549,1730913045783,-500.0,0.00027397,2]
[341468550,1730913045793,-500.0,0.00027397,2]
[341468551,1730913045803,-500.0,0.00027397,2]
[341468552,1730913045814,-500.0,0.00027397,2]
[341468553,1730913045825,-500.0,0.00027397,2]
[341468554,1730913045836,-507.01974075,0.00027397,2]
[341468555,1730913045847,-500.0,0.00027397,2]
[341468556,1730913045858,-500.0,0.00027397,2]
[341468557,1730913045869,-500.0,0.00027397,2]
[341468558,1730913045878,-504.39942117,0.00027397,2]
[341468559,1730913045888,-500.0,0.00027397,2]
[341468560,1730913045898,-500.0,0.00027397,2]
[341468561,1730913045907,-984.70064036,0.00027397,2]
[341468562,1730913045916,-500.0,0.00027397,2]
[341468563,1730913045926,-500.0,0.00027397,2]
[341468564,1730913045935,-500.0,0.00027397,2]
[341468565,1730913045945,-500.0,0.00027397,2]
[341468566,1730913045956,-500.0,0.00027397,2]
[341468567,1730913045966,-508.72536043,0.00027397,2]
[341468568,1730913045976,-500.0,0.00027397,2]
[341468569,1730913045985,-500.0,0.00027397,2]
[341468570,1730913045995,-231.30173416,0.00027397,2]
[341468577,1730913046731,-424.74,0.00027387,3]
[341468578,1730913046741,-268.69826584,0.00027397,2]
[341468579,1730913046750,-500.0,0.00027397,2]
[341468580,1730913046760,-508.29268147,0.00027397,2]
[341468581,1730913046769,-500.0,0.00027397,2]
[341468582,1730913046779,-500.0,0.00027397,2]
[341468583,1730913046789,-555.29,0.00027397,2]
[341468585,1730913046799,-507.23517238,0.00027397,2]
[341468586,1730913046808,-500.0,0.00027397,2]
[341468587,1730913046817,-500.0,0.00027397,2]
[341468588,1730913046827,-500.0,0.00027397,2]
[341468589,1730913046836,-500.0,0.00027397,2]
[341468590,1730913046846,-500.0,0.00027397,2]
[341468591,1730913046856,-502.44137519,0.00027397,2]
[341468592,1730913046865,-500.0,0.00027397,2]
[341468593,1730913046873,-500.0,0.00027397,2]
[341468594,1730913046883,-500.0,0.00027397,2]
[341468595,1730913046892,-500.0,0.00027397,2]
[341468596,1730913046901,-500.0,0.00027397,2]
[341468597,1730913046910,-556.81467063,0.00027397,2]
[341468598,1730913046920,-500.0,0.00027397,2]
[341468599,1730913046929,-500.0,0.00027397,2]
[341468600,1730913046938,-500.0,0.00027397,2]
[341468601,1730913046947,-500.0,0.00027397,2]
[341468602,1730913046956,-500.0,0.00027397,2]
[341468603,1730913046965,-500.0,0.00027397,2]
[341468604,1730913046974,-500.0,0.00027397,2]
[341468605,1730913046983,-500.0,0.00027397,2]
[341468606,1730913046992,-504.77029019,0.00027397,2]
[341468607,1730913047001,-500.0,0.00027397,2]
[341468608,1730913047011,-500.0,0.00027397,2]
[341468609,1730913047019,-501.9679505,0.00027397,2]
[341468610,1730913047028,-500.0,0.00027397,2]
[341468611,1730913047037,-409.00137872,0.00027397,2]
[341468612,1730913047046,-459.16745048,0.00027397,2]
[341468613,1730913047055,-500.0,0.00027397,2]
[341468614,1730913047065,-500.0,0.00027397,2]
[341468615,1730913047075,-500.0,0.00027397,2]
[341468616,1730913047085,-500.0,0.00027397,2]
[341468617,1730913047101,-500.0,0.00027397,2]
[341468618,1730913047117,-500.0,0.00027397,2]
[341468619,1730913047131,-500.0,0.00027397,2]
[341468620,1730913047146,-500.0,0.00027397,2]
[341468621,1730913047157,-500.0,0.00027397,2]
[341468622,1730913047169,-593.43821414,0.00027397,2]
[341468623,1730913047183,-500.0,0.00027397,2]
[341468624,1730913047195,-500.0,0.00027397,2]
[341468625,1730913047208,-500.0,0.00027397,2]
[341468626,1730913047224,-500.0,0.00027397,2]
[341468627,1730913047236,-511.43751174,0.00027397,2]
[341468628,1730913047249,-531.37375211,0.00027397,2]
[341468629,1730913047263,-500.0,0.00027397,2]
[341468630,1730913047277,-500.0,0.00027397,2]
[341468631,1730913047290,-500.0,0.00027397,2]
[341468632,1730913047302,-500.0,0.00027397,2]
[341468633,1730913047315,-500.0,0.00027397,2]
[341468634,1730913047328,-500.0,0.00027397,2]
[341468635,1730913047342,-500.0,0.00027397,2]
[341468636,1730913047357,-231.9095538,0.00027397,2]
[341468637,1730913047373,-500.0,0.00027397,2]
[341468638,1730913047383,-585.14912009,0.00027397,2]
[341468639,1730913047394,-500.0,0.00027397,2]
[341468640,1730913047407,-500.0,0.00027397,2]
[341468641,1730913047418,-500.0,0.00027397,2]
[341468642,1730913047432,-500.0,0.00027397,2]
[341468643,1730913047444,-500.0,0.00027397,2]
[341468644,1730913047457,-500.0,0.00027397,2]
[341468645,1730913047469,-500.0,0.00027397,2]
[341468646,1730913047482,-503.28024373,0.00027397,2]